bitfinex-derivatives/quotes_BTCF0:USTF0_20250806
["timestamp","ask_amount","ask_price","bid_price","bid_amount"]
[1754445320957,1.1667911,113880.0,113870.0,0.2482467]
[1754445321269,1.6248447,113880.0,113870.0,0.1756467]
[1754445321471,1.6248447,113880.0,113870.0,0.2006167]
[1754445322169,1.6248447,113880.0,113870.0,0.1756467]
[1754445322366,1.6248447,113880.0,113870.0,0.2965767]
[1754445323167,1.1667911,113880.0,113870.0,0.2965767]
[1754445325171,1.6248447,113880.0,113870.0,0.2965767]
[1754445327472,1.1667911,113880.0,113870.0,0.2965767]
[1754445329874,1.1667911,113880.0,113870.0,0.2486067]
[1754445330075,1.1667911,113880.0,113870.0,0.1987967]
[1754445330373,1.1667911,113880.0,113870.0,0.2733167]
[1754445330575,1.1667911,113880.0,113870.0,0.2965767]
[1754445332673,0.5374311,113880.0,113870.0,0.2965767]
[1754445332875,1.1614311,113880.0,113870.0,0.2965767]
[1754445339578,0.3618,113880.0,113870.0,0.7546303]
[1754445339774,1.1598313,113880.0,113870.0,0.7546303]
[1754445341778,1.1598313,113880.0,113870.0,0.7566303]
[1754445341977,0.3618,113880.0,113870.0,0.7566303]
[1754445342186,0.9836,113880.0,113870.0,0.7566303]
[1754445342683,0.9826,113880.0,113870.0,0.7566303]
[1754445342982,0.6218,113880.0,113870.0,0.7566303]
[1754445343184,0.6242257,113890.0,113880.0,0.2254412]
[1754445343375,1.25528,113890.0,113880.0,0.2965612]
[1754445343575,1.25524,113890.0,113880.0,0.2965612]
[1754445344485,1.2457057,113890.0,113880.0,0.2965612]
[1754445344685,1.2018009,113890.0,113880.0,0.2965612]
[1754445345286,1.2028009,113890.0,113880.0,0.2965612]
[1754445345480,1.2028009,113890.0,113880.0,0.2485912]
[1754445345481,0.98328,113890.0,113880.0,0.2485912]
[1754445345681,0.3618,113890.0,113880.0,0.7546148]
[1754445345881,0.98276,113890.0,113880.0,0.7546148]
[1754445346082,0.62196,113890.0,113880.0,0.7546148]
[1754445346586,0.001,113890.0,113880.0,0.7546148]
[1754445346783,0.62172,113890.0,113880.0,0.7546148]
[1754445349195,0.7973358,113890.0,113880.0,0.7546148]
[1754445349586,1.1581358,113890.0,113880.0,0.7546148]
[1754445349892,0.7973358,113890.0,113880.0,0.7546148]
[1754445350888,0.62172,113890.0,113880.0,0.7546148]
[1754445351192,0.98252,113890.0,113880.0,0.7546148]
[1754445351800,0.7973358,113890.0,113880.0,0.7546148]
[1754445352200,0.62172,113890.0,113880.0,0.7546148]
[1754445354497,0.62172,113890.0,113880.0,1.1154148]
[1754445354697,0.62172,113890.0,113880.0,0.7546148]
[1754445358598,0.62172,113890.0,113880.0,1.32747282]
[1754445360015,0.001,113890.0,113880.0,1.68827282]
[1754445360211,0.62088,113890.0,113880.0,1.95117282]
[1754445360501,0.370456,113910.0,113900.0,0.2807002]
[1754445360708,0.98068,113910.0,113900.0,0.81108601]
[1754445360999,0.5363823,113920.0,113910.0,0.1755848]
[1754445361203,1.1562494,113920.0,113910.0,0.79614061]
[1754445361391,1.1562094,113920.0,113910.0,0.81107061]
[1754445361595,1.67166521,113920.0,113910.0,0.81107061]
[1754445361802,1.1562094,113920.0,113910.0,0.81107061]
[1754445362003,1.67166521,113920.0,113910.0,0.2956148]
[1754445362213,1.67166521,113920.0,113910.0,0.81107061]
[1754445362400,1.1602094,113920.0,113910.0,0.2468148]
[1754445362605,1.67566521,113920.0,113910.0,0.2966148]
[1754445362902,1.1602094,113920.0,113910.0,0.2966148]
[1754445363105,1.1642094,113920.0,113910.0,0.2966148]
[1754445363903,1.17352062,113920.0,113910.0,0.2966148]
[1754445365900,1.63163208,113920.0,113910.0,0.2966148]
[1754445367308,1.17352062,113920.0,113910.0,0.2966148]
[1754445367508,1.63163208,113920.0,113910.0,0.2966148]
[1754445368210,1.17352062,113920.0,113910.0,0.2966148]
[1754445371308,1.17352062,113920.0,113910.0,0.2468148]
[1754445371513,1.17352062,113920.0,113910.0,0.2966148]
[1754445374014,1.63163208,113920.0,113910.0,0.2966148]
[1754445374604,1.63163208,113920.0,113910.0,0.2956148]
[1754445374804,1.62863208,113920.0,113910.0,0.2956148]
[1754445375210,1.17052062,113920.0,113910.0,0.2956148]
[1754445375415,1.62863208,113920.0,113910.0,0.2956148]
[1754445376217,1.62763208,113920.0,113910.0,0.2956148]
[1754445376416,1.62863208,113920.0,113910.0,0.2956148]
[1754445376811,1.17052062,113920.0,113910.0,0.2956148]
[1754445377220,1.16652062,113920.0,113910.0,0.2956148]
[1754445381816,1.62463208,113920.0,113910.0,0.2956148]
[1754445384024,1.00479208,113920.0,113910.0,0.2956148]
[1754445384224,1.1570894,113920.0,113910.0,0.75372626]
[1754445384724,1.67237531,113920.0,113910.0,0.81090071]
[1754445384917,1.05265531,113920.0,113910.0,0.81090071]
[1754445385118,1.67233531,113920.0,113910.0,0.81090071]
[1754445386529,1.67233531,113920.0,113910.0,0.2956148]
[1754445386722,1.67233531,113920.0,113910.0,0.81090071]
[1754445388327,1.1570494,113920.0,113910.0,0.81090071]
[1754445388827,1.67233531,113920.0,113910.0,0.81090071]
[1754445391630,1.1570494,113920.0,113910.0,0.81090071]
[1754445392126,1.67233531,113920.0,113910.0,0.81090071]
[1754445393225,1.1570494,113920.0,113910.0,0.81090071]
[1754445393429,1.67233531,113920.0,113910.0,0.81090071]
[1754445394032,1.67225531,113920.0,113910.0,0.81090071]
[1754445394634,1.67225531,113920.0,113910.0,0.2956148]
[1754445394825,1.67225531,113920.0,113910.0,0.81090071]
[1754445396435,1.1569694,113920.0,113910.0,0.81090071]
[1754445396634,1.67225531,113920.0,113910.0,0.81090071]
[1754445397137,1.1569694,113920.0,113910.0,0.81090071]
[1754445397336,1.67225531,113920.0,113910.0,0.81090071]
[1754445399841,1.1569694,113920.0,113910.0,0.81090071]
[1754445400135,1.67225531,113920.0,113910.0,0.81090071]
[1754445401138,1.1569694,113920.0,113910.0,0.81090071]
[1754445401438,1.67225531,113920.0,113910.0,0.81090071]
[1754445401634,1.1569694,113920.0,113910.0,0.81090071]
[1754445401946,1.67225531,113920.0,113910.0,0.81090071]
[1754445402134,1.67225531,113920.0,113910.0,0.1982848]
[1754445402435,1.67225531,113920.0,113910.0,0.80693071]
[1754445403142,1.67225531,113920.0,113910.0,0.80893071]
[1754445404137,1.67125531,113920.0,113910.0,0.80893071]
[1754445404842,1.67225531,113920.0,113910.0,0.80893071]
[1754445405640,1.67225531,113920.0,113910.0,0.80693071]
[1754445407437,1.1569694,113920.0,113910.0,0.80693071]
[1754445407636,1.67225531,113920.0,113910.0,0.80693071]
[1754445409843,1.1569694,113920.0,113910.0,0.80693071]
[1754445410046,1.67225531,113920.0,113910.0,0.80693071]
[1754445410245,1.1569694,113920.0,113910.0,0.80693071]
[1754445410938,1.1559694,113920.0,113910.0,0.80693071]
[1754445411138,1.1569694,113920.0,113910.0,0.80693071]
[1754445411830,1.1559694,113920.0,113910.0,0.80693071]
[1754445412338,1.67125531,113920.0,113910.0,0.80893071]
[1754445415747,1.1559694,113920.0,113910.0,0.80893071]
[1754445415936,1.67125531,113920.0,113910.0,0.80893071]
[1754445418042,1.67125531,113920.0,113910.0,0.80693071]
[1754445418043,0.3618,113920.0,113910.0,0.80693071]
[1754445418244,0.6202,113920.0,113910.0,1.32221662]
[1754445418546,0.6202,113920.0,113910.0,1.94591662]
[1754445418940,0.6202,113920.0,113910.0,2.10381886]
[1754445419135,0.6241158,113940.0,113930.0,0.2229341]
[1754445419446,1.75856171,113940.0,113930.0,0.81080001]
[1754445419645,1.2432758,113940.0,113930.0,0.81080001]
[1754445419848,0.63332394,113940.0,113930.0,0.81080001]
[1754445420042,1.25248394,113940.0,113930.0,0.81080001]
[1754445420347,1.76976985,113940.0,113930.0,0.81080001]
[1754445421348,1.77076985,113940.0,113930.0,0.81080001]
[1754445422042,0.63632394,113940.0,113930.0,0.81080001]
[1754445422247,1.77072985,113940.0,113930.0,0.81080001]
[1754445422948,1.77072985,113940.0,113930.0,0.2955141]
[1754445423148,1.77072985,113940.0,113930.0,0.81080001]
[1754445424342,1.25544394,113940.0,113930.0,0.81080001]
[1754445424549,1.77072985,113940.0,113930.0,0.81080001]
[1754445424750,1.77072985,113940.0,113930.0,0.2955141]
[1754445425145,2.28601576,113940.0,113930.0,0.02445]
[1754445425450,0.1755541,113930.0,113920.0,0.3133938]
[1754445425750,1.05164001,113930.0,113920.0,0.3133938]
[1754445426850,0.5373541,113930.0,113920.0,0.82867971]
[1754445427146,0.5373541,113930.0,113920.0,0.92418971]
[1754445427652,0.3618,113930.0,113920.0,0.92418971]
[1754445427844,0.5373541,113930.0,113920.0,0.92418971]
[1754445428852,0.3618,113930.0,113920.0,0.92418971]
[1754445431656,0.61988,113930.0,113920.0,0.92418971]
[1754445434762,0.61988,113930.0,113920.0,0.86676272]
[1754445435657,1.1562341,113930.0,113920.0,0.86676272]
[1754445435865,0.61988,113930.0,113920.0,0.86676272]
[1754445436358,0.001,113930.0,113920.0,0.86676272]
[1754445436562,0.6241004,113950.0,113940.0,0.2229186]
[1754445436757,0.6241004,113950.0,113940.0,0.75335752]
[1754445436758,1.1550832,113950.0,113940.0,0.75335752]
[1754445438076,1.1550832,113950.0,113940.0,0.2954986]
[1754445438466,1.1570832,113950.0,113940.0,0.2954986]
[1754445438969,1.1600832,113950.0,113940.0,0.2954986]
[1754445439369,0.98456,113950.0,113940.0,0.75335752]
[1754445439670,0.98456,113950.0,113940.0,0.2954986]
[1754445439871,0.98456,113950.0,113940.0,0.75335752]
[1754445442171,0.62376,113950.0,113940.0,0.75335752]
[1754445442373,0.98456,113950.0,113940.0,0.75335752]
[1754445442574,0.7992833,113950.0,113940.0,0.75335752]
[1754445442773,1.1600833,113950.0,113940.0,0.75335752]
[1754445442974,1.1600833,113950.0,113940.0,0.2954986]
[1754445443274,1.1600833,113950.0,113940.0,0.75335752]
[1754445443769,0.98456,113950.0,113940.0,0.75335752]
[1754445444169,1.1600833,113950.0,113940.0,0.2954986]
[1754445444369,0.98456,113950.0,113940.0,0.75335752]
[1754445445974,1.1600833,113950.0,113940.0,0.75335752]
[1754445446476,1.1599233,113950.0,113940.0,0.75335752]
[1754445447973,1.1599233,113950.0,113940.0,0.2954986]
[1754445448173,1.1599233,113950.0,113940.0,0.1999886]
[1754445448577,1.61778222,113950.0,113940.0,0.1999886]
[1754445449169,1.1599233,113950.0,113940.0,0.2945586]
[1754445453083,1.1599233,113950.0,113940.0,0.1999886]
[1754445453583,1.1599233,113950.0,113940.0,0.2945586]
[1754445456090,1.1599233,113950.0,113940.0,0.75241752]
[1754445457687,1.1599233,113950.0,113940.0,0.70605752]
[1754445457888,1.1599233,113950.0,113940.0,0.75241752]
[1754445459293,1.1599233,113950.0,113940.0,0.2945586]
[1754445459489,1.1599233,113950.0,113940.0,0.75241752]
[1754445459800,0.9844,113950.0,113940.0,0.75241752]
[1754445459994,0.6236,113950.0,113940.0,0.75241752]
[1754445460194,0.9844,113950.0,113940.0,0.75241752]
[1754445460499,1.1599233,113950.0,113940.0,0.75241752]
[1754445460698,1.1599233,113950.0,113940.0,0.80955093]
[1754445462996,1.67491563,113950.0,113940.0,0.80955093]
[1754445463596,1.1599233,113950.0,113940.0,0.80955093]
[1754445464187,1.67491563,113950.0,113940.0,0.80955093]
[1754445464596,1.67491563,113950.0,113940.0,0.1999886]
[1754445464898,1.67491563,113950.0,113940.0,0.71498093]
[1754445465295,1.67491563,113950.0,113940.0,0.1999886]
[1754445465599,1.67491563,113950.0,113940.0,0.1755386]
[1754445466192,1.67491563,113950.0,113940.0,0.1980586]
[1754445466589,1.67491563,113950.0,113940.0,0.71305093]
[1754445466895,1.1599233,113950.0,113940.0,0.1980586]
[1754445468895,1.1599233,113950.0,113940.0,0.2306286]
[1754445469797,1.1599233,113950.0,113940.0,0.2556386]
[1754445469994,1.1599233,113950.0,113940.0,0.2926286]
[1754445474702,0.5413233,113950.0,113940.0,0.70412621]
[1754445474905,0.5413233,113950.0,113940.0,0.75300621]
[1754445474906,0.984,113950.0,113940.0,0.75300621]
[1754445475804,1.1595232,113950.0,113940.0,0.2951486]
[1754445476009,1.1595232,113950.0,113940.0,0.75300621]
[1754445476507,0.984,113950.0,113940.0,0.75300621]
[1754445476699,0.984,113950.0,113940.0,0.2951486]
[1754445476906,1.1595232,113950.0,113940.0,0.2951486]
[1754445477603,1.1595232,113950.0,113940.0,0.75300621]
[1754445480710,1.1565232,113950.0,113940.0,0.75300621]
[1754445480903,0.3658,113950.0,113940.0,0.75300621]
[1754445481108,0.005,113950.0,113940.0,0.75300621]
[1754445481404,0.62312,113950.0,113940.0,1.11380621]
[1754445481707,0.62312,113950.0,113940.0,0.75300621]
[1754445481906,0.62312,113950.0,113940.0,1.11380621]
[1754445482309,0.62112,113950.0,113940.0,1.11380621]
[1754445482805,0.61912,113950.0,113940.0,1.11380621]
[1754445483001,0.61812,113950.0,113940.0,0.75500621]
[1754445483409,0.61812,113950.0,113940.0,0.75800621]
[1754445484707,0.61812,113950.0,113940.0,1.02090621]
[1754445485408,0.61812,113950.0,113940.0,1.11880621]
[1754445488098,0.61812,113950.0,113940.0,0.6609486]
[1754445488296,0.61812,113950.0,113940.0,0.75800621]
[1754445491708,0.61812,113950.0,113940.0,0.3001486]
[1754445492011,0.61812,113950.0,113940.0,0.75800621]
[1754445492218,0.00071568,113960.0,113950.0,0.2241132]
[1754445492408,0.61871568,113960.0,113950.0,0.75509081]
[1754445492604,0.61871568,113960.0,113950.0,0.81206487]
[1754445493515,0.61871568,113960.0,113950.0,0.81506487]
[1754445494610,0.61871568,113960.0,113950.0,0.75787029]
[1754445495516,0.97951568,113960.0,113950.0,0.3002332]
[1754445495820,0.97951568,113960.0,113950.0,0.75787029]
[1754445496911,0.97951568,113960.0,113950.0,0.3002332]
[1754445497117,0.97951568,113960.0,113950.0,0.75787029]
[1754445502817,0.97951568,113960.0,113950.0,0.3002332]
[1754445503017,0.97951568,113960.0,113950.0,0.75787029]
[1754445511231,0.97951568,113960.0,113950.0,0.74222029]
[1754445511432,0.97951568,113960.0,113950.0,0.75678029]
[1754445516745,0.97951568,113960.0,113950.0,0.2991432]
[1754445516945,0.97951568,113960.0,113950.0,0.8140308]
[1754445517344,1.15502358,113960.0,113950.0,0.8140308]
[1754445520042,0.97951568,113960.0,113950.0,0.8140308]
[1754445524046,0.97951568,113960.0,113950.0,0.2991432]
[1754445524242,0.97899568,113960.0,113950.0,0.8140308]
[1754445528436,0.97899568,113960.0,113950.0,0.2991432]
[1754445528642,0.97899568,113960.0,113950.0,0.8140308]
[1754445528839,0.97899568,113960.0,113950.0,0.2991432]
[1754445529046,0.97899568,113960.0,113950.0,0.8140308]
[1754445531449,0.1755385,113940.0,113930.0,0.35794614]
[1754445531646,1.1537385,113940.0,113930.0,0.2000439]
[1754445531854,1.6686261,113940.0,113930.0,0.8108915]
[1754445532653,1.6716261,113940.0,113930.0,0.8108915]
[1754445533051,1.6726261,113940.0,113930.0,0.8108915]
[1754445533358,1.6706261,113940.0,113930.0,0.8108915]
[1754445535352,2.0314261,113940.0,113930.0,0.2475139]
[1754445535750,2.0314261,113940.0,113930.0,0.2250439]
[1754445536150,2.5463137,113940.0,113930.0,0.2000439]
[1754445536651,1.97452236,113940.0,113930.0,0.35794614]
[1754445537041,1.35712236,113940.0,113930.0,0.35794614]
[1754445537252,1.5164985,113940.0,113930.0,0.35794614]
[1754445537447,1.5164985,113940.0,113930.0,0.39272614]
[1754445538357,1.97448236,113940.0,113930.0,0.39272614]
[1754445538754,1.97448236,113940.0,113930.0,0.35794614]
[1754445539054,1.97448236,113940.0,113930.0,0.2000439]
[1754445540148,1.97448236,113940.0,113930.0,0.2348239]
[1754445542855,1.97448236,113940.0,113930.0,0.2000439]
[1754445543856,1.97448236,113940.0,113930.0,0.1755539]
[1754445544157,1.97448236,113940.0,113930.0,0.1997539]
[1754445549763,1.97448236,113940.0,113930.0,0.2345339]
[1754445550863,1.97448236,113940.0,113930.0,0.1997539]
[1754445555062,1.5164985,113940.0,113930.0,0.1997539]
[1754445555366,1.97448236,113940.0,113930.0,0.1997539]
[1754445556463,1.97448236,113940.0,113930.0,0.1755539]
[1754445556770,1.5164985,113940.0,113930.0,0.1997539]
[1754445557162,2.54703478,113940.0,113930.0,0.1997539]
[1754445560068,2.54703478,113940.0,113930.0,0.1755539]
[1754445560363,2.54703478,113940.0,113930.0,0.1997539]
[1754445561970,0.175554,113930.0,113920.0,0.2428143]
[1754445562170,1.05162214,113930.0,113920.0,0.2428143]
[1754445564567,1.05262214,113930.0,113920.0,0.2428143]
[1754445565669,1.05362214,113930.0,113920.0,0.2428143]
[1754445570077,1.05362214,113930.0,113920.0,0.3133943]
[1754445571972,0.1755694,113920.0,113910.0,0.3345812]
[1754445572181,1.67003754,113920.0,113910.0,0.3805712]
[1754445572572,1.67003754,113920.0,113910.0,0.3366771]
[1754445573672,1.67919377,113920.0,113910.0,0.3366771]
[1754445573974,1.67919377,113920.0,113910.0,0.2906871]
[1754445574169,1.67919377,113920.0,113910.0,0.02336]
[1754445575178,1.74813949,113920.0,113910.0,0.02336]
[1754445575774,1.67919377,113920.0,113910.0,0.02336]
[1754445577679,2.03999377,113920.0,113910.0,0.02336]
[1754445578880,2.03999377,113920.0,113910.0,0.198945]
[1754445580678,2.10909409,113920.0,113910.0,0.198945]
[1754445582984,2.10909409,113920.0,113910.0,0.02336]
[1754445583883,2.10909409,113920.0,113910.0,0.198945]
[1754445585988,2.10909409,113920.0,113910.0,0.02336]
[1754445586886,2.10909409,113920.0,113910.0,0.198945]
[1754445597495,2.10909409,113920.0,113910.0,0.02336]
[1754445598387,0.175585,113910.0,113900.0,0.3134083]
[1754445598593,1.56692128,113910.0,113900.0,0.02463]
[1754445598788,0.1756004,113900.0,113890.0,0.3561034]
[1754445598990,1.66890854,113900.0,113890.0,0.4139634]
[1754445599291,1.66890854,113900.0,113890.0,0.4282534]
[1754445599693,1.66890854,113900.0,113890.0,0.2441366]
[1754445600095,1.66890854,113900.0,113890.0,0.2786366]
[1754445600291,1.66890854,113900.0,113890.0,0.05002]
[1754445600490,1.66890854,113900.0,113890.0,0.02463]
[1754445600791,1.66890854,113900.0,113880.0,0.02463]
[1754445600792,0.3073372,113890.0,113880.0,0.02463]
[1754445600995,1.69867348,113890.0,113880.0,0.02463]
[1754445601184,1.18340534,113890.0,113880.0,0.2002614]
[1754445601387,1.18340534,113890.0,113880.0,0.02463]
[1754445601989,1.18340534,113890.0,113880.0,0.2002614]
[1754445603004,0.6242299,113890.0,113880.0,0.2965714]
[1754445603302,0.3608,113890.0,113880.0,0.81183954]
[1754445603508,0.97804,113890.0,113880.0,0.81183954]
[1754445604602,1.1536561,113890.0,113880.0,0.2965714]
[1754445604794,1.49330814,113890.0,113880.0,0.2965714]
[1754445604999,1.49530814,113890.0,113880.0,0.81183954]
[1754445605607,1.49430814,113890.0,113880.0,0.81183954]
[1754445605905,1.49330814,113890.0,113880.0,0.81183954]
[1754445606600,1.49330814,113890.0,113880.0,0.2965714]
[1754445606601,0.97804,113890.0,113880.0,0.2965714]
[1754445610412,0.3608,113890.0,113880.0,0.2965714]
[1754445610710,0.978,113890.0,113880.0,0.2965714]
[1754445611803,0.3608,113890.0,113880.0,0.2965714]
[1754445612003,0.97796,113890.0,113880.0,0.75484957]
[1754445613605,0.97796,113890.0,113880.0,0.75684957]
[1754445613801,0.3608,113900.0,113890.0,0.2231358]
[1754445614005,0.97792,113900.0,113890.0,0.75483397]
[1754445614610,0.97792,113900.0,113890.0,0.2965558]
[1754445614807,0.5364004,113900.0,113890.0,0.2965558]
[1754445615007,1.1535204,113900.0,113890.0,0.2965558]
[1754445615907,0.97792,113900.0,113890.0,0.2965558]
[1754445618013,0.61712,113900.0,113890.0,0.2965558]
[1754445618206,0.3608,113900.0,113890.0,0.75483397]
[1754445618415,0.97784,113900.0,113890.0,0.75483397]
[1754445619014,0.97784,113900.0,113890.0,0.91273621]
[1754445619713,0.97784,113900.0,113890.0,0.45445804]
[1754445620012,0.97784,113900.0,113890.0,0.91273621]
[1754445620212,2.47784,113900.0,113890.0,0.91273621]
[1754445620511,2.6534404,113900.0,113890.0,0.91273621]
[1754445620812,2.6534404,113900.0,113890.0,0.45445804]
[1754445623217,2.6534404,113900.0,113890.0,0.2965558]
[1754445623420,3.11171857,113900.0,113890.0,0.2256358]
[1754445623620,3.11171857,113900.0,113890.0,0.2489458]
[1754445623822,3.11171857,113900.0,113890.0,0.2961158]
[1754445625116,2.6534404,113900.0,113890.0,0.2002458]
[1754445626921,3.11171857,113900.0,113890.0,0.2002458]
[1754445627122,3.11171857,113900.0,113890.0,0.35814804]
[1754445627321,3.11171857,113900.0,113890.0,0.39042804]
[1754445627523,3.11171857,113900.0,113890.0,0.43899804]
[1754445627826,3.11171857,113900.0,113890.0,0.45388804]
[1754445628216,2.6534404,113900.0,113890.0,0.45388804]
[1754445630426,2.6534404,113900.0,113890.0,0.2959858]
[1754445636326,2.6534404,113900.0,113890.0,0.2810958]
[1754445636519,3.11171857,113900.0,113890.0,0.2002458]
[1754445637731,3.11171857,113900.0,113890.0,0.1756158]
[1754445638432,3.11371857,113900.0,113890.0,0.1756158]
[1754445641034,2.6554404,113900.0,113890.0,0.1756158]
[1754445641227,3.11371857,113900.0,113890.0,0.1984358]
[1754445641724,2.6554404,113900.0,113890.0,0.1984358]
[1754445641925,3.11371857,113900.0,113890.0,0.1984358]
[1754445642936,2.6554404,113900.0,113890.0,0.1984358]
[1754445643134,3.11371857,113900.0,113890.0,0.1984358]
[1754445649042,3.47451857,113900.0,113890.0,0.1984358]
[1754445652644,3.53181853,113900.0,113890.0,0.1984358]
[1754445656945,3.0162404,113900.0,113890.0,0.1984358]
[1754445657145,3.53181853,113900.0,113890.0,0.1984358]
[1754445657343,3.0162404,113900.0,113890.0,0.1984358]
[1754445657644,3.53181853,113900.0,113890.0,0.80673393]
[1754445660350,3.53181853,113900.0,113890.0,0.2911558]
[1754445660537,3.53181853,113900.0,113890.0,0.2449558]
[1754445660739,3.53181853,113900.0,113890.0,0.1984358]
[1754445662745,3.47451863,113900.0,113890.0,0.1984358]
[1754445665352,0.1756158,113890.0,113880.0,0.2634254]
[1754445665553,1.61073403,113890.0,113880.0,0.2876754]
[1754445666143,1.61073403,113890.0,113880.0,0.44557764]
[1754445666869,1.61073403,113890.0,113880.0,0.2876754]
[1754445667570,1.61173403,113890.0,113880.0,0.2876754]
[1754445667765,1.61273403,113890.0,113880.0,0.2876754]
[1754445670070,1.61273403,113890.0,113880.0,0.3194254]
[1754445670269,1.1544558,113890.0,113880.0,0.3585754]
[1754445670464,1.61273403,113890.0,113880.0,0.3585754]
[1754445670768,1.61273403,113890.0,113880.0,0.3803954]
[1754445672963,0.97868,113890.0,113880.0,0.3803954]
[1754445673165,0.3628,113890.0,113880.0,0.83867363]
[1754445673360,0.97864,113890.0,113880.0,0.83867363]
[1754445674472,0.97764,113890.0,113880.0,0.83867363]
[1754445675062,0.97764,113890.0,113880.0,0.99657587]
[1754445675374,0.97664,113890.0,113880.0,0.99657587]
[1754445675871,2.0364004,113900.0,113890.0,0.2925858]
[1754445676071,2.6521604,113900.0,113890.0,0.45052799]
[1754445676474,3.11043863,113900.0,113890.0,0.45052799]
[1754445678677,3.11143863,113900.0,113890.0,0.45052799]
[1754445679470,3.11243863,113900.0,113890.0,0.45052799]
[1754445680471,3.11243863,113900.0,113890.0,0.33355799]
[1754445680674,3.11243863,113900.0,113890.0,0.35780799]
[1754445680872,3.11243863,113900.0,113890.0,0.1998658]
[1754445685877,2.6541604,113900.0,113890.0,0.1998658]
[1754445686070,3.11243863,113900.0,113890.0,0.1998658]
[1754445686272,3.11243863,113900.0,113890.0,0.2327658]
[1754445686477,3.11243863,113900.0,113890.0,0.2585358]
[1754445686664,3.11243863,113900.0,113890.0,0.2731858]
[1754445688173,3.11243863,113900.0,113890.0,0.2256358]
[1754445688372,3.11243863,113900.0,113890.0,0.1998658]
[1754445688573,2.6541604,113900.0,113890.0,0.1998658]
[1754445688873,3.11243863,113900.0,113890.0,0.1998658]
[1754445689683,2.6541604,113900.0,113890.0,0.1998658]
[1754445689883,3.11243863,113900.0,113890.0,0.1998658]
[1754445690981,3.11243863,113900.0,113890.0,0.2256358]
[1754445693584,3.11243863,113900.0,113890.0,0.1998658]
[1754445695891,3.11243863,113900.0,113890.0,0.2327658]
[1754445696284,3.11243863,113900.0,113890.0,0.2585358]
[1754445696483,3.11243863,113900.0,113890.0,0.2731858]
[1754445697188,3.11243863,113900.0,113890.0,0.2585358]
[1754445697483,3.11243863,113900.0,113890.0,0.2256358]
[1754445698690,3.16970805,113900.0,113890.0,0.2256358]
[1754445700384,3.16970805,113900.0,113890.0,0.1998658]
[1754445704388,2.6541604,113900.0,113890.0,0.1998658]
[1754445704592,3.16970805,113900.0,113890.0,0.1998658]
[1754445705095,3.16970805,113900.0,113880.0,0.33356149]
[1754445705096,0.1756158,113890.0,113880.0,0.33356149]
[1754445705388,1.1513358,113890.0,113880.0,0.33357339]
[1754445705593,1.66688345,113890.0,113880.0,0.35627339]
[1754445706092,1.66688345,113890.0,113880.0,0.1983312]
[1754445708192,1.66788345,113890.0,113880.0,0.1983312]
[1754445709396,1.66888345,113890.0,113880.0,0.1983312]
[1754445712795,1.61173808,113890.0,113880.0,0.1983312]
[1754445713294,1.61173808,113890.0,113880.0,0.2308712]
[1754445713295,1.1533358,113890.0,113880.0,0.2308712]
[1754445713495,1.61173808,113890.0,113880.0,0.2561612]
[1754445713795,1.61173808,113890.0,113880.0,0.2934612]
[1754445716198,1.1533358,113890.0,113880.0,0.2934612]
[1754445716499,1.1530958,113890.0,113880.0,0.2934612]
[1754445717398,1.1520958,113890.0,113880.0,0.2934612]
[1754445717599,1.1530958,113890.0,113880.0,0.2934612]
[1754445718200,1.60949808,113890.0,113880.0,0.2934612]
[1754445721195,1.1510958,113890.0,113880.0,0.2934612]
[1754445722811,1.60949808,113890.0,113880.0,0.1983312]
[1754445724000,1.61449808,113890.0,113880.0,0.1983312]
[1754445724600,1.61149808,113890.0,113880.0,0.1983312]
[1754445724800,1.61249808,113890.0,113880.0,0.1983312]
[1754445725004,1.61049808,113890.0,113880.0,0.1983312]
[1754445725300,1.61149808,113890.0,113880.0,0.1983312]
[1754445725603,0.1756312,113880.0,113870.0,0.51315499]
[1754445725793,0.99483348,113880.0,113870.0,0.54569499]
[1754445725988,0.99483348,113880.0,113870.0,0.58299499]
[1754445726599,0.99483348,113880.0,113870.0,0.48818499]
[1754445726790,0.99483348,113880.0,113870.0,0.44427409]
[1754445727403,0.99483348,113880.0,113870.0,0.40036319]
[1754445727797,0.99483348,113880.0,113870.0,0.242421]
[1754445729495,0.99583348,113880.0,113870.0,0.242421]
[1754445731007,0.99683348,113880.0,113870.0,0.242421]
[1754445731593,0.63603348,113880.0,113870.0,0.242421]
[1754445731806,1.35763348,113880.0,113870.0,0.242421]
[1754445732605,1.35763348,113880.0,113870.0,0.219541]
[1754445732801,1.35763348,113880.0,113870.0,0.242421]
[1754445732997,1.35763348,113880.0,113870.0,0.198512]
[1754445734007,0.8992312,113880.0,113870.0,0.198512]
[1754445734303,0.8992312,113880.0,113870.0,0.293322]
[1754445734504,1.35763348,113880.0,113870.0,0.293322]
[1754445736498,1.35763348,113880.0,113870.0,0.279162]
[1754445736705,1.35763348,113880.0,113870.0,0.246622]
[1754445737508,1.35763348,113880.0,113870.0,0.293322]
[1754445738701,1.93076882,113880.0,113870.0,0.293322]
[1754445739610,1.93076882,113880.0,113870.0,0.246622]
[1754445741410,1.93076882,113880.0,113870.0,0.293322]
[1754445741812,1.41500001,113880.0,113870.0,0.293322]
[1754445742109,0.8992312,113880.0,113870.0,0.293322]
[1754445742311,1.41500001,113880.0,113870.0,0.293322]
[1754445743816,2.02880001,113880.0,113870.0,0.293322]
[1754445747816,1.33728,113880.0,113870.0,0.80909081]
[1754445748017,1.85304881,113880.0,113870.0,0.80909081]
[1754445749117,1.13144881,113880.0,113870.0,0.80909081]
[1754445749319,1.49224881,113880.0,113870.0,0.80909081]
[1754445750621,0.97648,113880.0,113870.0,0.293322]
[1754445751308,1.1521111,113880.0,113870.0,0.293322]
[1754445751713,0.97648,113880.0,113870.0,0.293322]
[1754445752422,0.3628,113880.0,113870.0,0.75166851]
[1754445752623,0.97636,113880.0,113870.0,0.75166851]
[1754445752826,0.97636,113880.0,113870.0,0.293322]
[1754445754125,1.1519912,113880.0,113870.0,0.293322]
[1754445754624,0.5384312,113880.0,113870.0,0.293322]
[1754445754828,1.1519112,113880.0,113870.0,0.293322]
[1754445759028,0.97628,113880.0,113870.0,0.293322]
[1754445759629,1.1519112,113880.0,113870.0,0.45126419]
[1754445762432,1.61025771,113880.0,113870.0,0.45126419]
[1754445763632,1.1499112,113880.0,113870.0,0.45126419]
[1754445763927,1.1519112,113880.0,113870.0,0.45126419]
[1754445764726,0.97628,113880.0,113870.0,0.45126419]
[1754445765030,0.3628,113880.0,113870.0,0.45126419]
[1754445765237,0.002,113880.0,113870.0,0.9096107]
[1754445765426,0.61508,113880.0,113870.0,1.2704107]
[1754445765930,0.61508,113880.0,113870.0,1.37536851]
[1754445765931,0.61408,113880.0,113870.0,1.37536851]
[1754445766126,0.61508,113880.0,113870.0,1.37536851]
[1754445766533,0.61408,113880.0,113870.0,1.58093135]
[1754445766733,0.61808,113880.0,113870.0,1.58093135]
[1754445768431,0.61808,113880.0,113870.0,2.05656335]